[Event "Skalica Open 2019"]
[Site "Skalica"]
[Date "2019.08.26"]
[Round "2.19"]
[White "Chan, Naruna"]
[Black "Bilczewski, Kacper"]
[Result "1/2-1/2"]
[ECO "C41"]
[WhiteElo "1950"]
[BlackElo "2116"]
[Annotator "NA"]
[PlyCount "81"]
[EventDate "2019.08.25"]
[EventType "swiss"]
[EventCountry "SVK"]
[SourceTitle "playchess.com"]
[Source "ChessBase"]
[SourceQuality "1"]
[TimeControl "40/5400+30:1800+30"]

1. e4 {[%emt 0:00:00]} d6 {[%emt 0:00:05]} 2. d4 {[%emt 0:00:00]} Nf6 {[%emt 0:00:03]} 3. Nc3 {[%emt 0:00:00]} e5 {[%emt 0:00:04]} 4. Nf3 {[%emt 0:04:21]} Nbd7 {[%emt 0:00:06]} 5. Bc4 {[%emt 0:00:21]} Be7 {[%emt 0:00:11]} 6. O-O {[%emt 0:01:29]} O-O {[%emt 0:00:12]} 7. h3 {[%emt 0:00:33]} c6 {[%emt 0:00:06]} 8. a4 {[%emt 0:00:49]} a5 {[%emt 0:00:07]} 9. Ba2 {[%emt 0:09:56]} Qc7 {[%emt 0:14:39]} 10. Re1 {[%emt 0:02:50]} Nb6 {[%emt 0:00:59]} 11. Be3 {[%emt 0:05:35]} Nfd7 {[%emt 0:06:49]} 12. Qe2 {[%emt 0:15:09]} exd4 {[%emt 0:04:41]} 13. Nxd4 {[%emt 0:00:50]} Nc5 {[%emt 0:00:07]} 14. Nf5 {[%emt 0:08:38]} Bxf5 {[%emt 0:03:03]} 15. exf5 {[%emt 0:01:38]} Bf6 {[%emt 0:01:30]} 16. Qg4 {[%emt 0:04:59]} Nbd7 {[%emt 0:05:54]} 17. Bf4 {[%emt 0:10:48]} Ne5 {[%emt 0:01:47]} 18. Qh5 {[%emt 0:00:35]} Rae8 $11 {[%emt 0:06:08]} (18... Qb6 $5 {[%cal Rb6b2]} 19. Rab1 Rae8 $15) 19. Re3 {[%emt 0:06:17]} d5 {[%emt 0:06:57]} 20. Rg3 {[%emt 0:01:19]} Kh8 {[%emt 0:02:29]} 21. Rd1 {[%emt 0:03:12]} Qc8 {[%emt 0:07:18]} 22. Rf1 {[%emt 0:04:43]} g6 {[%emt 0:04:03]} 23. fxg6 {[%emt 0:00:31]} fxg6 {[%emt 0:00:06]} 24. Qd1 {[%emt 0:00:15]} Bg7 {[%emt 0:00:25]} 25. Be3 {[%emt 0:00:52]} Ne6 {[%emt 0:01:57]} 26. Ne2 {[%emt 0:01:04]} Qd8 {[%emt 0:03:39]} 27. Qd2 {[%emt 0:01:07]} Qh4 {[%emt 0:12:29]} 28. Nd4 {[%emt 0:07:53]} Nxd4 {[%emt 0:06:34]} 29. Bxd4 {[%emt 0:00:05]} Nf3+ {[%emt 0:01:55]} 30. Rxf3 {[%emt 0:03:08]} Qxd4 {[%emt 0:00:29]} 31. Qxd4 {[%emt 0:00:54]} Bxd4 {[%emt 0:00:06]} 32. Rxf8+ {[%emt 0:00:34]} Rxf8 {[%emt 0:00:04]} 33. c3 {[%emt 0:00:19]} Bc5 {[%emt 0:00:15]} 34. Bb1 {[%emt 0:02:24]} Kg7 {[%emt 0:07:51]} 35. g3 {[%emt 0:00:18]} Re8 {[%emt 0:00:07]} 36. Bd3 {[%emt 0:00:10]} Kf6 {[%emt 0:00:10]} 37. Kg2 {[%emt 0:00:09]} Re7 {[%emt 0:00:27]} 38. Rd1 {[%emt 0:00:42]} Re8 {[%emt 0:00:53]} 39. h4 {[%emt 0:00:59]} h6 {[%emt 0:00:47]} 40. Kf1 {[%emt 0:03:07]} Re7 {[%emt 0:00:21]} 41. Re1 {[%emt 0:30:20] Ke5} 1/2-1/2

[Event "Skalica Open 2019"]
[Site "Skalica"]
[Date "2019.08.26"]
[Round "3.1"]
[White "Demidov, Mikhail"]
[Black "Lanka, Zigurds"]
[Result "1-0"]
[ECO "B24"]
[WhiteElo "2556"]
[BlackElo "2395"]
[Annotator "ChessBase"]
[PlyCount "123"]
[EventDate "2019.08.25"]
[EventType "swiss"]
[EventCountry "SVK"]
[SourceTitle "playchess.com"]
[Source "ChessBase"]
[SourceQuality "1"]
[TimeControl "40/5400+30:1800+30"]

1. Nc3 {[%emt 0:00:00]} c5 {[%emt 0:00:00]} 2. e4 {[%emt 0:00:00]} Nc6 {[%emt 0:00:00]} 3. Bc4 {[%emt 0:00:00]} g6 {[%emt 0:00:03]} 4. a3 {[%emt 0:00:00]} Bg7 {[%emt 0:00:35]} 5. d3 {[%emt 0:00:00]} d6 {[%emt 0:01:04]} 6. Ba2 {[%emt 0:01:51]} Nf6 {[%emt 0:05:04]} 7. Nge2 {[%emt 0:00:50]} e5 {[%emt 0:01:03]} 8. O-O {[%emt 0:00:39]} Be6 {[%emt 0:02:48]} 9. Bxe6 {[%emt 0:07:08]} fxe6 {[%emt 0:00:40]} 10. f4 {[%emt 0:00:29]} Qd7 {[%emt 0:01:40]} 11. fxe5 {[%emt 0:02:06]} Nxe5 {[%emt 0:01:04]} 12. Bg5 {[%emt 0:00:46]} O-O {[%emt 0:00:58]} 13. Qd2 {[%emt 0:01:11]} Rf7 {[%emt 0:02:04]} 14. h3 {[%emt 0:06:03]} Raf8 {[%emt 0:00:38]} 15. Ng3 {[%emt 0:01:03]} h5 {[%emt 0:04:31]} 16. Rae1 {[%emt 0:03:47]} a6 {[%emt 0:01:33]} 17. Nce2 {[%emt 0:05:57]} Nh7 {[%emt 0:01:51]} 18. Bh6 {[%emt 0:01:49]} Rxf1+ {[%emt 0:01:11]} 19. Rxf1 {[%emt 0:00:59]} Rxf1+ {[%emt 0:00:17]} 20. Nxf1 {[%emt 0:00:08]} Bf6 {[%emt 0:04:54]} 21. Be3 {[%emt 0:00:37]} g5 {[%emt 0:02:30]} 22. b3 {[%emt 0:03:29]} Qf7 {[%emt 0:02:52]} 23. Nh2 {[%emt 0:03:17]} Be7 {[%emt 0:15:59]} 24. Ng3 {[%emt 0:07:14]} Qg6 {[%emt 0:02:10]} 25. Qa5 {[%emt 0:04:57]} g4 {[%emt 0:02:32]} 26. hxg4 {[%emt 0:02:02]} Nxg4 {[%emt 0:00:26]} 27. Nxg4 {[%emt 0:03:24]} Qxg4 {[%emt 0:00:11]} 28. Nf1 {[%emt 0:00:32]} h4 {[%emt 0:01:33]} 29. Qd2 {[%emt 0:03:58]} Bf6 {[%emt 0:02:29]} 30. Nh2 {[%emt 0:01:17]} Qh5 {[%emt 0:03:06]} 31. Qe1 {[%emt 0:03:03]} Nf8 {[%emt 0:03:39]} 32. Qf1 {[%emt 0:01:20]} Kg7 {[%emt 0:02:18]} 33. Qf3 {[%emt 0:01:08]} Qxf3 {[%emt 0:02:10]} 34. Nxf3 {[%emt 0:00:35]} Kg6 {[%emt 0:05:18]} 35. e5 {[%emt 0:00:50]} Bxe5 {[%emt 0:00:15]} 36. Nxe5+ {[%emt 0:02:52]} dxe5 {[%emt 0:00:07]} 37. Bxc5 {[%emt 0:00:04]} Nd7 {[%emt 0:00:45]} 38. Be7 {[%emt 0:00:07]} Kf5 {[%emt 0:01:20]} 39. Bxh4 {[%emt 0:01:35]} e4 {[%emt 0:00:07]} 40. dxe4+ {[%emt 0:01:13]} Kxe4 {[%emt 0:00:08]} 41. Kf2 {[%emt 0:30:47]} Nb6 {[%emt 0:33:54]} 42. Bg5 {[%emt 0:00:40]} Nd5 {[%emt 0:00:51]} 43. g4 {[%emt 0:05:05]} Nc3 {[%emt 0:01:42]} 44. a4 {[%emt 0:02:00]} e5 {[%emt 0:03:52]} 45. Bd2 {[%emt 0:05:13]} Nd5 {[%emt 0:00:05]} 46. Kg3 {[%emt 0:05:36]} Nc7 {[%emt 0:01:59]} 47. Kh4 {[%emt 0:10:34]} Ne6 {[%emt 0:01:51]} 48. g5 {[%emt 0:00:00]} Kf5 {[%emt 0:00:00]} 49. Kh5 {[%emt 0:00:00]} Nf8 {[%emt 0:00:00]} 50. c4 {[%emt 0:00:00]} Ng6 {[%emt 0:00:00]} 51. b4 {[%emt 0:00:00]} e4 {[%emt 0:00:00]} 52. b5 {[%emt 0:00:00]} Ne5 {[%emt 0:00:00]} 53. c5 {[%emt 0:00:00]} axb5 {[%emt 0:00:00]} 54. axb5 {[%emt 0:00:00]} Ke6 {[%emt 0:00:00]} 55. g6 {[%emt 0:00:00]} Nd7 {[%emt 0:00:00]} 56. Kh6 {[%emt 0:00:00]} Nf6 {[%emt 0:00:00]} 57. Bg5 {[%emt 0:00:00]} Ne8 {[%emt 0:00:00]} 58. Be3 {[%emt 0:00:00]} Nf6 {[%emt 0:00:00]} 59. Bd4 {[%emt 0:00:00]} Nd5 {[%emt 0:00:00]} 60. g7 {[%emt 0:00:00]} Ne7 {[%emt 0:00:00]} 61. Kh7 {[%emt 0:00:00]} Kd5 {[%emt 0:00:00]} 62. Bf6 {[%emt 0:00:00]} 1-0

[Event "Skalica Open 2019"]
[Site "Skalica"]
[Date "2019.08.26"]
[Round "3.3"]
[White "Komliakov, Viktor"]
[Black "Maiorov, Nikita"]
[Result "1/2-1/2"]
[ECO "C54"]
[WhiteElo "2366"]
[BlackElo "2512"]
[Annotator "ChessBase"]
[PlyCount "24"]
[EventDate "2019.08.25"]
[EventType "swiss"]
[EventCountry "SVK"]
[SourceTitle "playchess.com"]
[Source "ChessBase"]
[SourceQuality "1"]
[TimeControl "40/5400+30:1800+30"]

1. e4 {[%emt 0:00:00]} e5 {[%emt 0:00:00]} 2. Nf3 {[%emt 0:00:00]} Nc6 {[%emt 0:00:00]} 3. Bc4 {[%emt 0:00:00]} Bc5 {[%emt 0:00:00]} 4. c3 {[%emt 0:00:00]} Nf6 {[%emt 0:00:00]} 5. d3 {[%emt 0:00:04]} O-O {[%emt 0:01:21]} 6. O-O {[%emt 0:11:40]} d6 {[%emt 0:07:29]} 7. Nbd2 {[%emt 0:00:20]} a6 {[%emt 0:01:13]} 8. Bb3 {[%emt 0:03:58]} Kh8 {[%emt 0:02:04]} 9. Nc4 Ba7 10. h3 {[%emt 0:06:15]} Ne7 {[%emt 0:10:39]} 11. Bg5 Ng6 12. Nh4 Ne7 1/2-1/2

[Event "Skalica Open 2019"]
[Site "Skalica"]
[Date "2019.08.26"]
[Round "3.4"]
[White "Potapov, Pavel"]
[Black "Aleksandrovskiy, Dmitriy"]
[Result "1/2-1/2"]
[ECO "C17"]
[WhiteElo "2496"]
[BlackElo "2284"]
[Annotator "ChessBase"]
[PlyCount "32"]
[EventDate "2019.08.25"]
[EventType "swiss"]
[EventCountry "SVK"]
[SourceTitle "playchess.com"]
[Source "ChessBase"]
[SourceQuality "1"]
[TimeControl "40/5400+30:1800+30"]

1. e4 {[%emt 0:00:00]} e6 {[%emt 0:00:00]} 2. d4 {[%emt 0:00:00]} d5 {[%emt 0:00:00]} 3. Nc3 {[%emt 0:00:17]} Bb4 {[%emt 0:00:00]} 4. e5 {[%emt 0:00:10]} c5 {[%emt 0:00:04]} 5. a3 {[%emt 0:00:12]} Ba5 {[%emt 0:00:05]} 6. b4 {[%emt 0:00:57]} cxd4 {[%emt 0:00:06]} 7. Qg4 {[%emt 0:04:49]} Kf8 {[%emt 0:00:15]} 8. Nb5 {[%emt 0:06:08]} Bc7 {[%emt 0:03:14]} 9. Qxd4 {[%emt 0:15:35]} Ne7 {[%emt 0:07:23]} 10. f4 {[%emt 0:05:09]} Bb6 {[%emt 0:04:16]} 11. Qd3 {[%emt 0:06:25]} Nf5 {[%emt 0:06:15]} 12. Nf3 {[%emt 0:00:41]} Nc6 {[%emt 0:03:54]} 13. g4 {[%emt 0:24:14]} Nh4 {[%emt 0:09:58]} 14. Nxh4 {[%emt 0:00:25]} Qxh4+ {[%emt 0:00:07]} 15. Qg3 {[%emt 0:00:06]} Qxg3+ {[%emt 0:01:00]} 16. hxg3 {[%emt 0:00:04]} Nd4 {[%emt 0:00:26]} 1/2-1/2

[Event "Skalica Open 2019"]
[Site "Skalica"]
[Date "2019.08.26"]
[Round "3.5"]
[White "Kuznetsov, Mikhail V."]
[Black "Vykouk, Jan"]
[Result "0-1"]
[ECO "E15"]
[WhiteElo "2261"]
[BlackElo "2477"]
[Annotator "ChessBase"]
[PlyCount "58"]
[EventDate "2019.08.25"]
[EventType "swiss"]
[EventCountry "SVK"]
[SourceTitle "playchess.com"]
[Source "ChessBase"]
[SourceQuality "1"]
[TimeControl "40/5400+30:1800+30"]

1. d4 {[%emt 0:00:00]} Nf6 {[%emt 0:00:27]} 2. Nf3 {[%emt 0:00:00]} e6 {[%emt 0:00:05]} 3. c4 {[%emt 0:00:49]} b6 {[%emt 0:00:22]} 4. g3 {[%emt 0:00:33]} Ba6 {[%emt 0:00:08]} 5. Qa4 {[%emt 0:05:10]} Bb7 {[%emt 0:00:07]} 6. Bg2 {[%emt 0:01:16]} c5 {[%emt 0:00:05]} 7. O-O {[%emt 0:01:04]} cxd4 {[%emt 0:01:13]} 8. Nxd4 {[%emt 0:03:04]} Bxg2 {[%emt 0:00:06]} 9. Kxg2 {[%emt 0:00:03]} Bc5 {[%emt 0:00:24]} 10. Rd1 {[%emt 0:00:58]} O-O {[%emt 0:00:19]} 11. Nc3 {[%emt 0:02:08]} Qc7 {[%emt 0:00:50]} 12. Bg5 {[%emt 0:07:05]} Ng4 {[%emt 0:03:26]} 13. b4 {[%emt 0:05:11]} Bxd4 {[%emt 0:03:27]} 14. Rxd4 {[%emt 0:00:20]} Ne5 {[%emt 0:04:02]} 15. Be7 {[%emt 0:11:34]} Rc8 {[%emt 0:14:41]} 16. Bd6 {[%emt 0:12:23]} Qb7+ {[%emt 0:00:07]} 17. Kg1 {[%emt 0:01:08]} Nxc4 {[%emt 0:00:13]} 18. Bxb8 {[%emt 0:02:06]} Qxb8 {[%emt 0:00:05]} 19. Qb3 {[%emt 0:09:42]} d5 {[%emt 0:00:22]} 20. e4 {[%emt 0:06:05]} Ne5 {[%emt 0:00:41]} 21. Kg2 {[%emt 0:02:13]} Qc7 {[%emt 0:01:48]} 22. Rc1 {[%emt 0:01:14]} dxe4 {[%emt 0:03:05]} 23. Rcd1 {[%emt 0:01:38]} e3 {[%emt 0:03:54]} 24. fxe3 {[%emt 0:00:50]} Qc6+ {[%emt 0:01:32]} 25. e4 {[%emt 0:00:26]} h6 {[%emt 0:00:50]} 26. Ne2 {[%emt 0:00:53]} Kh7 {[%emt 0:03:54]} 27. b5 {[%emt 0:04:28]} Qc2 {[%emt 0:00:50]} 28. R1d2 {[%emt 0:00:24]} Qc5 {[%emt 0:03:36]} 29. Kh3 {[%emt 0:02:50]} Nc4 {[%emt 0:02:46]} 0-1

[Event "Skalica Open 2019"]
[Site "Skalica"]
[Date "2019.08.26"]
[Round "3.6"]
[White "Pechac, Jergus"]
[Black "Istona, Martin"]
[Result "1-0"]
[ECO "D85"]
[WhiteElo "2471"]
[BlackElo "2235"]
[Annotator "ChessBase"]
[PlyCount "83"]
[EventDate "2019.08.25"]
[EventType "swiss"]
[EventCountry "SVK"]
[SourceTitle "playchess.com"]
[Source "ChessBase"]
[SourceQuality "1"]
[TimeControl "40/5400+30:1800+30"]

1. d4 {[%emt 0:00:00]} Nf6 {[%emt 0:10:47]} 2. c4 {[%emt 0:00:00]} g6 {[%emt 0:00:25]} 3. Nc3 {[%emt 0:00:00]} d5 {[%emt 0:00:06]} 4. cxd5 {[%emt 0:00:00]} Nxd5 {[%emt 0:00:18]} 5. e4 {[%emt 0:00:16]} Nxc3 {[%emt 0:00:08]} 6. bxc3 {[%emt 0:00:09]} Bg7 {[%emt 0:00:06]} 7. Be3 {[%emt 0:00:15]} c5 {[%emt 0:00:06]} 8. Rc1 {[%emt 0:00:05]} O-O {[%emt 0:00:07]} 9. Nf3 {[%emt 0:00:10]} Qa5 {[%emt 0:00:35]} 10. Qd2 {[%emt 0:00:06]} Nd7 {[%emt 0:00:13]} 11. d5 {[%emt 0:12:33]} Nf6 {[%emt 0:01:16]} 12. Bd3 {[%emt 0:00:44]} e6 {[%emt 0:11:51]} 13. c4 {[%emt 0:00:27]} Qxd2+ {[%emt 0:01:32]} 14. Nxd2 {[%emt 0:01:21]} b6 {[%emt 0:04:59]} 15. f3 {[%emt 0:00:17]} exd5 {[%emt 0:01:33]} 16. cxd5 {[%emt 0:07:45]} Nd7 {[%emt 0:08:39]} 17. O-O {[%emt 0:04:48]} f5 {[%emt 0:03:08]} 18. Bb5 {[%emt 0:04:27]} f4 {[%emt 0:13:50]} 19. Bf2 {[%emt 0:01:27]} Ne5 {[%emt 0:00:23]} 20. Rfd1 {[%emt 0:00:36]} g5 {[%emt 0:08:55]} 21. Nc4 {[%emt 0:00:59]} Rd8 {[%emt 0:00:54]} 22. a4 {[%emt 0:02:06]} Bd7 {[%emt 0:05:07]} 23. Bxd7 {[%emt 0:08:24]} Rxd7 {[%emt 0:00:45]} 24. a5 {[%emt 0:00:40]} Rb8 {[%emt 0:04:54]} 25. h4 {[%emt 0:04:34]} h6 {[%emt 0:02:23]} 26. Nxe5 {[%emt 0:05:20]} Bxe5 {[%emt 0:00:13]} 27. Kh2 {[%emt 0:00:06]} Kf7 {[%emt 0:00:29]} 28. Kh3 {[%emt 0:00:24]} Kf6 {[%emt 0:03:00]} 29. Rb1 {[%emt 0:04:39]} bxa5 {[%emt 0:16:44]} 30. Rxb8 {[%emt 0:01:20]} Bxb8 {[%emt 0:00:01]} 31. Bxc5 {[%emt 0:00:25]} Be5 {[%emt 0:00:10]} 32. Rb1 {[%emt 0:01:14]} Rc7 {[%emt 0:01:52]} 33. Rb5 {[%emt 0:00:22]} Bc3 {[%emt 0:00:25]} 34. Bf8 {[%emt 0:01:33]} gxh4 {[%emt 0:00:35]} 35. Bd6 {[%emt 0:07:26]} Rg7 {[%emt 0:00:28]} 36. Bxf4 {[%emt 0:00:16]} Be5 {[%emt 0:00:32]} 37. Bxe5+ {[%emt 0:00:27]} Kxe5 {[%emt 0:00:01]} 38. Rxa5 {[%emt 0:00:13]} Kf4 {[%emt 0:00:52]} 39. d6 {[%emt 0:00:13]} Rd7 {[%emt 0:00:37]} 40. Rf5+ {[%emt 0:00:54]} Ke3 {[%emt 0:00:07]} 41. e5 {[%emt 0:30:07]} a5 {[%emt 0:30:34]} 42. e6 {[%emt 0:00:18]} 1-0

[Event "Skalica Open 2019"]
[Site "Skalica"]
[Date "2019.08.26"]
[Round "3.7"]
[White "Kapusta, Petr"]
[Black "Manik, Mikulas"]
[Result "0-1"]
[ECO "B83"]
[WhiteElo "2157"]
[BlackElo "2374"]
[Annotator "NA"]
[PlyCount "130"]
[EventDate "2019.08.25"]
[EventType "swiss"]
[EventCountry "SVK"]
[SourceTitle "playchess.com"]
[Source "ChessBase"]
[SourceQuality "1"]
[TimeControl "40/5400+30:1800+30"]

1. e4 {[%emt 0:00:47]} c5 {[%emt 0:00:00]} 2. Nf3 {[%emt 0:00:06]} d6 {[%emt 0:00:00]} 3. d4 {[%emt 0:00:07]} cxd4 {[%emt 0:00:00]} 4. Nxd4 {[%emt 0:00:06]} Nf6 {[%emt 0:00:00]} 5. Nc3 {[%emt 0:00:06]} Nc6 {[%emt 0:00:05]} 6. Be2 {[%emt 0:01:38]} e6 {[%emt 0:02:08]} 7. Be3 {[%emt 0:00:14]} Be7 {[%emt 0:00:18]} 8. O-O {[%emt 0:00:11]} O-O {[%emt 0:00:18]} 9. Kh1 {[%emt 0:00:06]} Nxd4 {[%emt 0:07:07]} 10. Bxd4 {[%emt 0:00:48]} e5 {[%emt 0:00:14]} 11. Be3 {[%emt 0:00:13]} a6 {[%emt 0:00:16]} 12. a4 {[%emt 0:01:13]} Be6 {[%emt 0:04:40]} 13. f4 {[%emt 0:02:01]} exf4 {[%emt 0:00:10]} 14. Rxf4 {[%emt 0:02:56]} Nd7 {[%emt 0:01:30]} 15. Nd5 {[%emt 0:04:18]} Bg5 {[%emt 0:01:08]} 16. Rf3 {[%emt 0:03:15]} Bxe3 {[%emt 0:01:14]} 17. Rxe3 {[%emt 0:00:16]} Rc8 {[%emt 0:00:37]} 18. c3 {[%emt 0:07:12]} Bxd5 {[%emt 0:02:12]} 19. Qxd5 {[%emt 0:00:37]} Qb6 {[%emt 0:03:51]} 20. Qd2 {[%emt 0:04:10]} Ne5 {[%emt 0:00:28]} 21. Rg3 {[%emt 0:01:37]} f6 {[%emt 0:02:49]} 22. Rf1 {[%emt 0:04:54]} Rc7 {[%emt 0:10:16]} 23. Bg4 {[%emt 0:07:27]} Nxg4 {[%emt 0:02:44]} 24. Rxg4 {[%emt 0:00:18]} Qc6 {[%emt 0:01:25]} 25. h4 {[%emt 0:05:51]} Re7 {[%emt 0:05:14]} 26. Qd4 {[%emt 0:04:52]} h5 {[%emt 0:05:22]} 27. Rgf4 {[%emt 0:02:03]} Rfe8 {[%emt 0:01:52]} 28. Qd5+ {[%emt 0:08:22]} Qxd5 {[%emt 0:00:13]} 29. exd5 {[%emt 0:00:05]} Re2 {[%emt 0:04:53]} 30. b3 {[%emt 0:09:28]} Rd2 {[%emt 0:02:13]} 31. c4 {[%emt 0:08:47]} Ree2 {[%emt 0:03:55]} 32. Rg1 {[%emt 0:00:41]} Re3 {[%emt 0:02:51]} 33. b4 {[%emt 0:02:37]} Ra3 {[%emt 0:00:57]} 34. a5 {[%emt 0:02:50]} Rb3 {[%emt 0:00:21]} 35. c5 {[%emt 0:01:31]} dxc5 {[%emt 0:00:21]} 36. bxc5 {[%emt 0:00:06]} Rxd5 {[%emt 0:00:05]} 37. Rc1 {[%emt 0:00:33]} Rb5 {[%emt 0:00:06]} 38. c6 {[%emt 0:00:28]} bxc6 {[%emt 0:00:05]} 39. Rxc6 {[%emt 0:00:07]} Rxa5 {[%emt 0:00:10]} 40. Rc8+ {[%emt 0:00:11]} Kh7 {[%emt 0:00:08]} 41. Rc7 {[%emt 0:30:35]} Rd6 {[%emt 0:38:21]} 42. Ra7 {[%emt 0:04:54]} Ra2 {[%emt 0:01:28]} 43. Rf5 {[%emt 0:02:41]} Kg6 {[%emt 0:04:54]} 44. Rf3 {[%emt 0:01:11]} Rd4 {[%emt 0:00:06]} 45. Rg3+ {[%emt 0:00:53]} Rg4 {[%emt 0:00:07]} 46. Rxg4+ {[%emt 0:00:10]} hxg4 {[%emt 0:00:03]} 47. Kh2 {[%emt 0:00:19]} Ra3 {[%emt 0:00:12]} 48. h5+ {[%emt 0:01:25]} Kxh5 {[%emt 0:01:27]} 49. Rxg7 {[%emt 0:00:06]} a5 {[%emt 0:01:21]} 50. Rg8 {[%emt 0:00:25]} a4 {[%emt 0:00:45]} 51. Rg7 {[%emt 0:00:10]} f5 {[%emt 0:00:35]} 52. Rg8 {[%emt 0:00:11]} f4 {[%emt 0:02:58]} 53. Rh8+ {[%emt 0:04:04]} Kg5 {[%emt 0:00:07]} 54. Rg8+ {[%emt 0:00:05]} Kf5 {[%emt 0:00:04]} 55. Rf8+ {[%emt 0:00:06]} Ke4 {[%emt 0:00:06]} 56. Re8+ {[%emt 0:00:06]} Kd4 {[%emt 0:01:42]} 57. Rg8 {[%emt 0:01:33]} Rg3 {[%emt 0:00:39]} 58. Ra8 {[%emt 0:00:18]} a3 {[%emt 0:00:23]} 59. Ra4+ {[%emt 0:00:18]} Ke5 {[%emt 0:00:21]} 60. Ra5+ {[%emt 0:00:23]} Kf6 {[%emt 0:00:11]} 61. Rb5 {[%emt 0:04:39]} Re3 {[%emt 0:00:47]} 62. Ra5 {[%emt 0:00:14]} Re2 {[%emt 0:00:22]} 63. Rxa3 {[%emt 0:00:00]} f3 {[%emt 0:00:00]} 64. Ra4 {[%emt 0:00:00]} Rxg2+ {[%emt 0:00:00]} 65. Kh1 {[%emt 0:00:00]} Rg3 {[%emt 0:00:00]} 0-1

[Event "Skalica Open 2019"]
[Site "Skalica"]
[Date "2019.08.26"]
[Round "3.9"]
[White "Jablonicky, Martin"]
[Black "Kalisky, Vladimir"]
[Result "1-0"]
[ECO "C90"]
[WhiteElo "2343"]
[BlackElo "2179"]
[Annotator "NA"]
[PlyCount "71"]
[EventDate "2019.08.25"]
[EventType "swiss"]
[EventCountry "SVK"]
[SourceTitle "playchess.com"]
[Source "ChessBase"]
[SourceQuality "1"]
[TimeControl "40/5400+30:1800+30"]

1. e4 {[%emt 0:02:09]} e5 {[%emt 0:00:00]} 2. Nf3 {[%emt 0:00:05]} Nc6 {[%emt 0:00:00]} 3. Bb5 {[%emt 0:00:12]} a6 {[%emt 0:00:44]} 4. Ba4 {[%emt 0:00:06]} Nf6 {[%emt 0:00:08]} 5. d3 {[%emt 0:00:05]} b5 {[%emt 0:00:44]} 6. Bb3 {[%emt 0:00:04]} d6 {[%emt 0:00:15]} 7. c3 {[%emt 0:00:21]} Be7 {[%emt 0:02:11]} 8. O-O {[%emt 0:00:09]} O-O {[%emt 0:00:26]} 9. Re1 {[%emt 0:00:17]} Na5 {[%emt 0:00:50]} 10. Bc2 {[%emt 0:00:07]} c5 {[%emt 0:00:19]} 11. Nbd2 {[%emt 0:00:25]} Nc6 {[%emt 0:07:08]} 12. Nf1 {[%emt 0:00:12]} Re8 {[%emt 0:00:07]} 13. a4 {[%emt 0:00:45]} Rb8 {[%emt 0:06:24]} 14. axb5 {[%emt 0:00:10]} axb5 {[%emt 0:00:01]} 15. h3 {[%emt 0:04:07]} Bf8 {[%emt 0:05:53]} 16. d4 {[%emt 0:03:15]} h6 {[%emt 0:18:24]} 17. Ng3 {[%emt 0:01:43]} Qc7 {[%emt 0:03:39]} 18. d5 {[%emt 0:02:12]} Na5 {[%emt 0:03:15]} 19. Nh4 {[%emt 0:04:54]} g6 {[%emt 0:10:38]} 20. Qf3 {[%emt 0:01:09]} Nh7 {[%emt 0:02:34]} 21. Nhf5 {[%emt 0:02:19]} Ng5 {[%emt 0:14:14]} 22. Qg4 {[%emt 0:03:41]} f6 {[%emt 0:09:35]} 23. h4 {[%emt 0:00:23]} gxf5 {[%emt 0:01:36]} 24. exf5 {[%emt 0:00:05]} Nc4 {[%emt 0:03:03]} 25. hxg5 {[%emt 0:01:55]} fxg5 {[%emt 0:06:00]} 26. f4 {[%emt 0:00:07]} Qg7 {[%emt 0:01:56]} 27. Nh5 {[%emt 0:00:23]} Qf7 {[%emt 0:00:20]} 28. fxg5 {[%emt 0:00:17]} e4 {[%emt 0:01:08]} 29. Nf6+ {[%emt 0:02:35]} Kh8 {[%emt 0:00:11]} 30. Nxe8 {[%emt 0:02:59]} Bxf5 {[%emt 0:00:20]} 31. Qf4 {[%emt 0:01:25]} Rxe8 {[%emt 0:00:16]} 32. Rf1 {[%emt 0:00:52]} Re5 {[%emt 0:00:13]} 33. g4 {[%emt 0:00:53]} e3 {[%emt 0:02:20]} 34. Bxf5 {[%emt 0:00:34]} e2 {[%emt 0:00:05]} 35. Re1 {[%emt 0:00:39]} Qxd5 {[%emt 0:01:00]} 36. Be6 1-0

[Event "Skalica Open 2019"]
[Site "Skalica"]
[Date "2019.08.26"]
[Round "3.10"]
[White "Danada, Tomas"]
[Black "Kuna, Martin"]
[Result "1-0"]
[ECO "A06"]
[WhiteElo "2266"]
[BlackElo "1969"]
[Annotator "NA"]
[PlyCount "37"]
[EventDate "2019.08.25"]
[EventType "swiss"]
[EventCountry "SVK"]
[SourceTitle "playchess.com"]
[Source "ChessBase"]
[SourceQuality "1"]
[TimeControl "40/5400+30:1800+30"]

1. Nf3 {[%emt 0:01:39]} d5 {[%emt 0:00:07]} 2. b3 {[%emt 0:00:09]} Nf6 {[%emt 0:01:03]} 3. Bb2 {[%emt 0:00:23]} Bf5 {[%emt 0:01:04]} 4. g3 {[%emt 0:00:10]} e6 {[%emt 0:00:56]} 5. Bg2 {[%emt 0:00:05]} h6 {[%emt 0:00:55]} 6. O-O {[%emt 0:00:15]} Be7 {[%emt 0:00:32]} 7. d3 {[%emt 0:00:22]} O-O {[%emt 0:00:35]} 8. Nbd2 {[%emt 0:01:28]} Nbd7 {[%emt 0:02:37]} 9. Re1 {[%emt 0:00:30]} Bh7 {[%emt 0:06:53]} 10. h3 {[%emt 0:04:25]} c5 {[%emt 0:06:42]} 11. e4 {[%emt 0:00:34]} Rb8 {[%emt 0:02:36]} 12. c4 {[%emt 0:03:11]} b5 {[%emt 0:04:38]} 13. cxd5 {[%emt 0:09:56]} exd5 {[%emt 0:01:08]} 14. a4 {[%emt 0:02:05]} c4 {[%emt 0:27:02]} 15. axb5 {[%emt 0:01:10]} cxd3 {[%emt 0:00:21]} 16. Nd4 dxe4 {[%emt 0:02:00]} 17. Nc6 {[%emt 0:01:42]} Qe8 {[%emt 0:00:31]} 18. Nxe4 {[%emt 0:00:42]} Bxe4 {[%emt 0:04:44]} 19. Bxe4 {[%emt 0:00:39]} 1-0